bitfinex/quotes_BTCUSD_20250618
["timestamp","ask_amount","ask_price","bid_price","bid_amount"]
[1750257119847,0.89642673,105220.0,105210.0,0.00414133]
[1750257120052,0.89642673,105220.0,105210.0,0.22275097]
[1750257120267,0.89642673,105220.0,105210.0,0.00414133]
[1750257120485,0.89642673,105220.0,105210.0,0.00014133]
[1750257121354,0.95912673,105220.0,105210.0,0.00014133]
[1750257121566,0.95912673,105220.0,105210.0,0.00614133]
[1750257121778,0.96012673,105220.0,105210.0,0.00614133]
[1750257122202,0.92742673,105220.0,105210.0,0.00614133]
[1750257122660,1.05396849,105220.0,105210.0,0.00614133]
[1750257123085,1.15011771,105220.0,105210.0,0.00614133]
[1750257123296,1.24535569,105220.0,105210.0,0.00614133]
[1750257123503,1.39424644,105220.0,105210.0,0.00614133]
[1750257123726,1.42265549,105220.0,105210.0,0.00614133]
[1750257123935,1.44835612,105220.0,105210.0,0.00614133]
[1750257124153,1.38764395,105220.0,105210.0,0.00214133]
[1750257124365,1.37165549,105220.0,105210.0,0.00014133]
[1750257124609,1.37965549,105220.0,105210.0,0.00214133]
[1750257124824,1.29840329,105220.0,105210.0,0.00114133]
[1750257125046,1.26999424,105220.0,105210.0,0.00014133]
[1750257125303,1.41814346,105220.0,105210.0,0.00114133]
[1750257125509,1.48439175,105220.0,105210.0,0.00114133]
[1750257125714,1.35340329,105220.0,105210.0,0.00214133]
[1750257126341,1.34840329,105220.0,105210.0,0.00214133]
[1750257126562,1.13040329,105220.0,105210.0,0.00214133]
[1750257126770,1.10199424,105220.0,105210.0,0.00214133]
[1750257126952,1.26999424,105220.0,105210.0,0.00214133]
[1750257127190,1.36614346,105220.0,105210.0,0.00214133]
[1750257127406,1.29840329,105220.0,105210.0,0.00214133]
[1750257127628,1.34840329,105220.0,105210.0,0.00214133]
[1750257128066,1.29840329,105220.0,105210.0,0.00214133]
[1750257128278,1.11586244,105220.0,105210.0,0.00214133]
[1750257128488,1.28386244,105220.0,105210.0,0.00214133]
[1750257128710,1.25545339,105220.0,105210.0,0.00214133]
[1750257128940,1.23969424,105220.0,105210.0,0.00214133]
[1750257129195,1.23084789,105220.0,105210.0,0.00214133]
[1750257131391,1.26278789,105220.0,105210.0,0.00214133]
[1750257131600,1.29136089,105220.0,105210.0,0.00214133]
[1750257131816,1.07688004,105220.0,105210.0,0.00214133]
[1750257132027,1.04688004,105220.0,105210.0,0.00214133]
[1750257133364,0.89942673,105220.0,105210.0,0.03314133]
[1750257133569,1.09181771,105220.0,105210.0,0.00214133]
[1750257133823,1.01837613,105220.0,105210.0,0.00214133]
[1750257134036,0.92213437,105220.0,105210.0,0.00214133]
[1750257135295,1.01837613,105220.0,105210.0,0.00214133]
[1750257136773,1.18637613,105220.0,105210.0,0.00214133]
[1750257136991,1.18187233,105220.0,105210.0,0.00214133]
[1750257138172,1.01387233,105220.0,105210.0,0.00214133]
[1750257138403,1.03165272,105220.0,105210.0,0.00214133]
[1750257138640,1.04051815,105220.0,105210.0,0.00214133]
[1750257138904,1.04051972,105220.0,105210.0,0.00214133]
[1750257139360,1.04051972,105220.0,105210.0,0.20174211]
[1750257139581,1.04051972,105220.0,105210.0,0.00214133]
[1750257139810,1.04051972,105220.0,105210.0,0.00314133]
[1750257142338,1.04054573,105220.0,105210.0,0.00314133]
[1750257142973,1.04054573,105220.0,105210.0,0.19323732]
[1750257143206,1.04054557,105220.0,105210.0,0.19323732]
[1750257143432,0.75422647,105220.0,105210.0,0.28475061]
[1750257143651,0.008,105220.0,105210.0,0.28475061]
[1750257143902,0.008,105220.0,105210.0,0.38099237]
[1750257144115,0.007,105220.0,105210.0,0.38099237]
[1750257144334,0.007,105220.0,105210.0,0.73553322]
[1750257144567,5e-05,105240.0,105230.0,0.21856775]
[1750257144779,5e-05,105240.0,105230.0,0.59380951]
[1750257145424,0.55131403,105260.0,105250.0,0.0313]
[1750257145644,0.55131403,105260.0,105250.0,0.28172621]
[1750257145645,0.00889059,105260.0,105250.0,0.28172621]
[1750257145855,0.20954857,105270.0,105260.0,0.28170546]
[1750257146063,0.03453363,105270.0,105260.0,0.32950546]
[1750257146274,0.23462864,105270.0,105260.0,0.32950564]
[1750257146482,0.24401538,105270.0,105260.0,0.33900529]
[1750257146693,0.25398604,105270.0,105260.0,0.33900529]
[1750257146917,0.23784139,105270.0,105260.0,0.33900529]
[1750257147129,0.44682735,105270.0,105260.0,0.33900529]
[1750257147352,0.44682735,105270.0,105260.0,0.34000529]
[1750257147353,0.24834041,105270.0,105260.0,0.34000529]
[1750257147575,0.25783961,105270.0,105260.0,0.34000529]
[1750257147835,0.24834104,105270.0,105260.0,0.34000529]
[1750257148050,0.22934282,105270.0,105260.0,0.34000529]
[1750257148428,0.01034532,105270.0,105260.0,0.2901059]
[1750257148513,0.20147146,105270.0,105260.0,0.34030547]
[1750257148741,0.22046905,105270.0,105260.0,0.34030547]
[1750257148970,0.24910426,105270.0,105260.0,0.30910547]
[1750257149200,0.25860355,105270.0,105260.0,0.30910547]
[1750257149436,0.2485912,105270.0,105260.0,0.30818547]
[1750257149683,0.05860355,105270.0,105260.0,0.30818547]
[1750257149916,0.25860355,105270.0,105260.0,0.30818547]
[1750257150164,0.22060747,105270.0,105260.0,0.34138547]
[1750257150431,0.02060747,105270.0,105260.0,0.43762723]
[1750257151142,0.00147146,105270.0,105260.0,0.43762723]
[1750257152323,0.00147146,105270.0,105260.0,0.43662723]
[1750257152558,0.00047146,105270.0,105260.0,0.43562723]
[1750257152799,0.00147146,105270.0,105260.0,0.43962723]
[1750257153270,0.00147146,105270.0,105260.0,0.77962723]
[1750257153550,0.00347146,105270.0,105260.0,0.79362723]
[1750257154225,0.00347146,105270.0,105260.0,0.80416808]
[1750257154226,0.00247146,105270.0,105260.0,0.80416808]
[1750257154692,0.00347146,105270.0,105260.0,0.81016808]
[1750257155383,5e-05,105300.0,105290.0,0.28074319]
[1750257155657,0.01908295,105300.0,105290.0,0.59262495]
[1750257155920,0.23750513,105300.0,105290.0,0.23771156]
[1750257156383,0.53690104,105290.0,105280.0,0.25670998]
[1750257156385,0.51792682,105280.0,105270.0,0.04776]
[1750257156622,0.58468109,105280.0,105270.0,0.19948694]
[1750257156861,0.61265936,105280.0,105270.0,0.20898614]
[1750257157090,0.61265936,105280.0,105270.0,0.19948694]
[1750257157324,0.61265936,105280.0,105270.0,0.20898614]
[1750257157981,0.31845875,105280.0,105270.0,0.22798391]
[1750257158210,0.33745479,105280.0,105270.0,0.22798391]
[1750257158414,0.32795668,105280.0,105270.0,0.22798391]
[1750257158623,0.32995668,105280.0,105270.0,0.24198391]
[1750257158839,0.32045875,105280.0,105270.0,0.24198391]
[1750257159268,0.32995668,105280.0,105270.0,0.24198391]
[1750257159486,0.002,105280.0,105270.0,0.27368391]
[1750257159699,0.002,105280.0,105270.0,0.30638391]
[1750257160986,0.03049406,105280.0,105270.0,0.26418516]
[1750257161232,0.51992728,105280.0,105270.0,0.25174765]
[1750257161641,0.32995731,105280.0,105270.0,0.28024471]
[1750257161860,0.5294253,105280.0,105270.0,0.28024471]
[1750257162098,0.53892378,105280.0,105270.0,0.28024471]
[1750257162308,0.53892378,105280.0,105270.0,0.2802448]
[1750257163147,0.51992747,105280.0,105270.0,0.27074614]
[1750257163367,0.51992747,105280.0,105270.0,0.28974391]
[1750257163566,0.51992747,105280.0,105270.0,0.28024507]
[1750257163820,0.51992747,105280.0,105270.0,0.28974391]
[1750257164032,0.32045866,105280.0,105270.0,0.29924266]
[1750257164241,0.32995641,105280.0,105270.0,0.32994266]
[1750257164447,0.32995641,105280.0,105270.0,0.42618442]
[1750257164448,0.310961,105280.0,105270.0,0.42618442]
[1750257164654,0.002,105280.0,105270.0,0.45878442]
[1750257166815,0.23049406,105280.0,105270.0,0.29920266]
[1750257167032,0.42996196,105280.0,105270.0,0.45750391]
[1750257167241,0.51992719,105280.0,105270.0,0.26120703]
[1750257167461,0.51042899,105280.0,105270.0,0.014]
[1750257167723,0.80853792,105280.0,105270.0,0.014]
[1750257167941,0.77207942,105280.0,105270.0,0.014]
[1750257168172,0.80923691,105280.0,105270.0,0.014]
[1750257168617,0.83766705,105280.0,105270.0,0.01]
[1750257168824,0.20902548,105250.0,105240.0,0.04772]
[1750257169058,0.53564587,105250.0,105240.0,0.24726389]
[1750257169270,0.53564585,105250.0,105240.0,0.25676589]
[1750257170117,0.53564585,105250.0,105240.0,0.25723735]
[1750257170332,0.53564585,105250.0,105240.0,0.26677925]
[1750257170544,0.53564585,105250.0,105240.0,0.2857826]
[1750257170987,0.53564585,105250.0,105240.0,0.25727735]
[1750257171204,0.53564585,105250.0,105240.0,0.24777535]
[1750257171404,0.53564585,105250.0,105240.0,0.05773355]
[1750257171581,0.53564585,105250.0,105240.0,0.25727735]
[1750257171842,0.53764585,105250.0,105240.0,0.05623146]
[1750257172052,0.70493958,105250.0,105240.0,0.00847146]
[1750257172271,0.72763347,105250.0,105240.0,0.01147146]
[1750257172700,0.69703347,105250.0,105240.0,0.01147146]
[1750257172914,0.56919171,105250.0,105240.0,0.01147146]
[1750257173126,0.72573369,105250.0,105240.0,0.01147146]
[1750257174639,0.74027454,105250.0,105240.0,0.01147146]
[1750257175545,0.7403439,105250.0,105240.0,0.01147146]
[1750257175997,0.76864705,105250.0,105240.0,0.01147146]
[1750257176463,0.93644705,105250.0,105240.0,0.01147146]
[1750257176712,0.7383439,105250.0,105240.0,0.00047146]
[1750257176950,0.83130305,105250.0,105240.0,0.00047146]
[1750257177168,0.83130305,105250.0,105240.0,0.00147146]
[1750257177411,0.85986505,105250.0,105240.0,0.00147146]
[1750257177884,0.80860894,105250.0,105240.0,0.00147146]
[1750257178109,0.89628975,105250.0,105240.0,0.00147146]
[1750257178340,0.91081662,105250.0,105240.0,0.00047146]
[1750257178567,0.91181662,105250.0,105240.0,0.00747146]
[1750257178795,0.91281662,105250.0,105240.0,0.00747146]
[1750257179046,1.00896584,105250.0,105240.0,0.00747146]
[1750257179260,0.41858879,105220.0,105210.0,0.24845864]
[1750257179544,0.01900634,105220.0,105210.0,0.25796316]
[1750257179777,5.27676424,105230.0,105220.0,0.20908544]
[1750257180010,5.06900697,105220.0,105210.0,0.28936244]
[1750257180254,0.21900661,105220.0,105210.0,0.28936244]
[1750257180546,0.23801385,105220.0,105210.0,0.25796244]
[1750257180781,0.45651941,105220.0,105210.0,0.23895599]
[1750257181003,0.4284372,105220.0,105210.0,0.25796512]
[1750257181295,0.4284372,105220.0,105210.0,0.26746946]
[1750257181544,0.22885475,105220.0,105210.0,0.30837362]
[1750257181781,0.24786127,105220.0,105210.0,0.30837362]
[1750257182002,0.23085493,105220.0,105210.0,0.31137362]
[1750257182238,0.43994001,105220.0,105210.0,0.27046955]
[1750257182440,0.24135837,105220.0,105210.0,0.29347796]
[1750257182653,0.25086172,105220.0,105210.0,0.29347796]
[1750257182879,0.45044345,105220.0,105210.0,0.2554606]
[1750257183098,0.45044345,105220.0,105210.0,0.26496503]
[1750257183321,0.45044345,105220.0,105210.0,0.27446937]
[1750257183545,0.43143702,105220.0,105210.0,0.2554606]
[1750257183757,0.43143702,105220.0,105210.0,0.27446937]
[1750257183973,0.24135864,105220.0,105210.0,0.31687353]
[1750257184218,0.24135792,105220.0,105210.0,0.28397353]
[1750257184425,0.26036489,105220.0,105210.0,0.28397353]
[1750257184841,0.25086127,105220.0,105210.0,0.28397353]
[1750257185071,0.26986842,105220.0,105210.0,0.28397353]
[1750257186120,0.26986914,105220.0,105210.0,0.28397353]
[1750257187010,5.32743002,105220.0,105210.0,0.0081]
[1750257187015,5.6718738,105220.0,105210.0,0.0081]
[1750257187230,5.25912483,105200.0,105190.0,0.04778]
[1750257187898,5.25912483,105200.0,105190.0,0.0001]
[1750257188363,5.05950525,105200.0,105190.0,0.19023214]
[1750257188582,0.23051557,105200.0,105190.0,0.22089219]
[1750257188809,0.002,105200.0,105190.0,0.45229219]
[1750257189029,0.20950398,105210.0,105200.0,0.25051254]
[1750257189246,0.01900805,105210.0,105200.0,0.28868756]
[1750257189485,0.4091053,105210.0,105200.0,0.04768]
[1750257189702,0.01901005,105200.0,105190.0,0.41859201]
[1750257189907,0.40912411,105200.0,105190.0,0.47027201]
[1750257190121,0.43013506,105200.0,105190.0,0.47977861]
[1750257190340,0.43013506,105200.0,105190.0,0.46827264]
[1750257190341,0.43013587,105200.0,105190.0,0.46827264]
[1750257190555,0.43013587,105200.0,105190.0,0.47777879]
[1750257190783,0.23051611,105200.0,105190.0,0.48728422]
[1750257191201,0.22851611,105200.0,105190.0,0.48528422]
[1750257191747,0.41863017,105200.0,105190.0,0.46627219]
[1750257191957,0.40912501,105200.0,105190.0,0.40585347]
[1750257192170,0.40912501,105200.0,105190.0,0.21572133]
[1750257192385,0.41112501,105200.0,105190.0,0.21572133]
[1750257192800,0.41112501,105200.0,105190.0,0.41535989]
[1750257193010,0.40261967,105200.0,105190.0,0.21872133]
[1750257193220,0.40061967,105200.0,105190.0,0.25056007]
[1750257193432,0.39011406,105200.0,105190.0,0.21572133]
[1750257193646,0.39011406,105200.0,105190.0,0.00024133]
[1750257193862,5.24011406,105200.0,105190.0,0.00124133]
[1750257194494,5.24211406,105200.0,105190.0,0.00124133]
[1750257194703,5.24211406,105200.0,105190.0,0.19137347]
[1750257195128,5.06150543,105200.0,105190.0,0.22939852]
[1750257195318,5.052,105200.0,105190.0,0.26119852]
[1750257195534,0.002,105200.0,105190.0,0.29179852]
[1750257195747,0.002,105200.0,105190.0,0.38804028]
[1750257196493,0.42062981,105200.0,105190.0,0.21989255]
[1750257196709,0.22101023,105200.0,105190.0,0.45442458]
[1750257196951,0.202,105200.0,105190.0,0.48482458]
[1750257197160,0.002,105200.0,105190.0,0.61396634]
[1750257197792,0.01150489,105200.0,105190.0,0.61396634]
[1750257198002,0.002,105200.0,105190.0,0.61396634]
[1750257199044,0.0305153,105200.0,105190.0,0.37208016]
[1750257199254,5.28013497,105200.0,105190.0,0.27414637]
[1750257199464,5.09002091,105200.0,105190.0,0.45141234]
[1750257199728,0.24002082,105200.0,105190.0,0.45141234]
[1750257199960,0.24002082,105200.0,105190.0,0.44487852]
[1750257200176,0.24002082,105200.0,105190.0,0.45141251]
[1750257200410,0.43964049,105200.0,105190.0,0.45141251]
[1750257200634,0.24952643,105200.0,105190.0,0.45141251]
[1750257200852,0.43964049,105200.0,105190.0,0.45141251]
[1750257201294,0.4396413,105200.0,105190.0,0.44190654]
[1750257201504,0.4396413,105200.0,105190.0,0.46091875]
[1750257201735,0.43013623,105200.0,105190.0,0.46091875]
[1750257201952,0.43013623,105200.0,105190.0,0.46091821]
[1750257202234,0.22101041,105200.0,105190.0,0.46091821]
[1750257202465,0.002,105200.0,105190.0,0.52281821]
[1750257202692,0.002,105200.0,105190.0,0.51628422]
[1750257202915,0.002,105200.0,105190.0,0.6190676]
[1750257204729,0.22885484,105220.0,105210.0,0.21860928]
[1750257204963,0.24886181,105220.0,105210.0,0.4241109]
[1750257205196,0.44844363,105220.0,105210.0,0.39291108]
[1750257205442,0.23935819,105220.0,105210.0,0.40241524]
[1750257205682,0.02035167,105220.0,105210.0,0.561257]
[1750257205899,0.02035167,105220.0,105210.0,0.56125632]
[1750257206342,0.02135167,105220.0,105210.0,0.56125632]
[1750257206565,0.22135167,105220.0,105210.0,0.56125693]
[1750257206995,0.22135167,105220.0,105210.0,0.52955693]
[1750257207206,0.02135167,105220.0,105210.0,0.52955693]
[1750257207413,0.02535167,105220.0,105210.0,0.53055693]
[1750257207620,0.0443581,105220.0,105210.0,0.53055693]
[1750257207828,0.04435801,105220.0,105210.0,0.53055693]
[1750257208039,0.24435801,105220.0,105210.0,0.53055693]
[1750257208261,0.03485475,105220.0,105210.0,0.53055693]
[1750257208467,0.22535167,105220.0,105210.0,0.53055693]
[1750257208679,0.02535167,105220.0,105210.0,0.53055693]
[1750257209106,0.22535167,105220.0,105210.0,0.53055693]
[1750257209334,0.02535167,105220.0,105210.0,0.53055693]
[1750257210246,0.03485493,105220.0,105210.0,0.49965693]
[1750257210455,0.03485475,105220.0,105210.0,0.49965693]
[1750257210643,0.23485475,105220.0,105210.0,0.49965693]
[1750257210881,0.22535167,105220.0,105210.0,0.49965693]
[1750257211328,0.02535167,105220.0,105210.0,0.49965693]
[1750257211549,0.02535167,105220.0,105210.0,0.53165512]
[1750257212451,0.22535167,105220.0,105210.0,0.53165512]
[1750257212884,0.23485475,105220.0,105210.0,0.53165512]
[1750257213332,0.02535167,105220.0,105210.0,0.56285512]
[1750257213539,0.03485475,105220.0,105210.0,0.56285512]
[1750257213761,0.45344381,105220.0,105210.0,0.05513974]
[1750257213982,5.3482372,105220.0,105210.0,0.17521974]
[1750257214200,5.37990256,105220.0,105210.0,0.00753995]
[1750257214410,5.37100399,105220.0,105210.0,0.00753995]
[1750257214637,5.39770073,105220.0,105210.0,0.00753995]
[1750257215087,5.3799029,105220.0,105210.0,0.00753995]
[1750257215528,5.35316648,105220.0,105210.0,0.00753995]
[1750257216212,5.38486648,105220.0,105210.0,0.00753995]
[1750257216853,5.38486698,105220.0,105210.0,0.00753995]
[1750257217075,5.402664,105220.0,105210.0,0.00753995]
[1750257217288,5.402664,105220.0,105210.0,0.001]
[1750257218196,5.570304,105220.0,105210.0,0.001]
[1750257218411,5.56534042,105220.0,105210.0,0.001]
[1750257219091,5.68988533,105220.0,105210.0,0.001]
[1750257219316,5.78603455,105220.0,105210.0,0.001]
[1750257219531,5.32292483,105200.0,105190.0,0.00678427]
[1750257219757,5.34569162,105200.0,105190.0,0.00678475]
[1750257219973,5.36349269,105200.0,105190.0,0.00678475]
[1750257220184,5.36348633,105200.0,105190.0,0.00024133]
[1750257220400,5.34569162,105200.0,105190.0,0.00024133]
[1750257221281,5.34669162,105200.0,105190.0,0.00224133]
[1750257221745,5.34769162,105200.0,105190.0,0.00524133]
[1750257223246,5.51529162,105200.0,105190.0,0.00524133]
[1750257225217,5.61153338,105200.0,105190.0,0.00524133]
[1750257225435,5.7076826,105200.0,105190.0,0.00524133]
[1750257225734,5.20270855,105200.0,105190.0,0.20487989]
[1750257225890,0.4206299,105200.0,105190.0,0.26282845]
[1750257226088,0.43013533,105200.0,105190.0,0.23042845]
[1750257226363,0.43013533,105200.0,105190.0,0.23993451]
[1750257226533,0.21901014,105200.0,105190.0,0.24444048]
[1750257226732,0.20950498,105200.0,105190.0,0.27684048]
[1750257227058,0.23802091,105200.0,105190.0,0.27784048]
[1750257227274,0.4281356,105200.0,105190.0,0.25882845]
[1750257227482,0.4281356,105200.0,105190.0,0.22642845]
[1750257227689,0.4281356,105200.0,105190.0,0.23593255]
[1750257228110,0.23902154,105200.0,105190.0,0.23793255]
[1750257228318,0.23902154,105200.0,105190.0,0.22842658]
[1750257228530,0.22951593,105200.0,105190.0,0.23793255]
[1750257228879,0.22001041,105200.0,105190.0,0.23793255]
[1750257229091,0.22001023,105200.0,105190.0,0.27033255]
[1750257229298,0.43864076,105200.0,105190.0,0.26082658]
[1750257229507,0.42913569,105200.0,105190.0,0.22842658]
[1750257229932,0.41963053,105200.0,105190.0,0.20941419]
[1750257230362,0.40061976,105200.0,105190.0,0.00977554]
[1750257230602,5.25061976,105200.0,105190.0,0.00324133]
[1750257231025,5.41206898,105200.0,105190.0,0.00324133]
[1750257231240,5.41216152,105200.0,105190.0,0.00324133]
[1750257231462,5.57968152,105200.0,105190.0,0.00324133]
[1750257231673,5.60244239,105200.0,105190.0,0.00324133]
[1750257232282,5.61698324,105200.0,105190.0,0.00324133]
[1750257233321,5.61598324,105200.0,105190.0,0.00124133]
[1750257233535,0.01901583,105170.0,105160.0,0.49466571]
[1750257233743,0.22852406,105170.0,105160.0,0.5012011]
[1750257233952,0.21901574,105170.0,105160.0,0.5012011]
[1750257234155,0.21901556,105170.0,105160.0,0.5012011]
[1750257234368,0.2285237,105170.0,105160.0,0.5012011]
[1750257234568,0.22852361,105170.0,105160.0,0.5012011]
[1750257234775,0.22852352,105170.0,105160.0,0.5012011]
[1750257234983,0.22952352,105170.0,105160.0,0.53319805]
[1750257235424,0.23152352,105170.0,105160.0,0.53419805]
[1750257235675,0.23152343,105170.0,105160.0,0.53419805]
[1750257235919,0.003,105170.0,105160.0,0.66243981]
[1750257236162,0.004,105170.0,105160.0,0.66743981]
[1750257236403,0.004,105170.0,105160.0,0.61983821]
[1750257236637,0.004,105170.0,105160.0,0.83491821]
[1750257237871,0.004,105170.0,105160.0,0.73491821]
[1750257239268,0.004,105170.0,105160.0,0.63491821]
[1750257239501,0.004,105170.0,105160.0,0.82507643]
[1750257240292,0.004,105170.0,105160.0,0.72507643]
[1750257242089,0.004,105170.0,105160.0,0.62508086]
[1750257242297,0.004,105170.0,105160.0,0.62508084]
[1750257242749,0.004,105170.0,105160.0,0.52508084]
[1750257242964,0.004,105170.0,105160.0,0.54409829]
[1750257243173,0.004,105170.0,105160.0,0.55360733]
[1750257243388,0.004,105170.0,105160.0,0.55356733]
[1750257244708,0.004,105170.0,105160.0,0.55357209]
[1750257244927,0.004,105170.0,105160.0,0.69307294]
[1750257245188,0.004,105170.0,105160.0,0.9079119]
[1750257245835,0.004,105170.0,105160.0,0.9389119]
[1750257246059,0.004,105170.0,105160.0,1.35417704]
[1750257246281,7.605e-05,105170.0,105160.0,1.45527704]
[1750257246516,4.709e-05,105200.0,105190.0,0.28185086]
[1750257246731,4.709e-05,105200.0,105190.0,0.5994714]
[1750257248426,4.709e-05,105200.0,105190.0,0.3846314]
[1750257248672,4.709e-05,105200.0,105190.0,0.6004714]
[1750257249112,4.709e-05,105200.0,105190.0,0.3224314]
[1750257249328,4.709e-05,105200.0,105190.0,0.5372314]
[1750257249541,0.02005723,105200.0,105190.0,0.5392314]
[1750257249968,0.02005714,105200.0,105190.0,0.5392314]
[1750257250204,0.01055216,105200.0,105190.0,0.5392314]
[1750257250395,0.00104709,105200.0,105190.0,0.5392314]
[1750257250974,0.00104709,105200.0,105190.0,0.3586194]
[1750257251225,0.00104709,105200.0,105190.0,0.57727026]
[1750257252694,0.00104709,105200.0,105190.0,0.51443026]
[1750257254818,0.2821769,105200.0,105190.0,0.19313214]
[1750257255052,0.48217762,105200.0,105190.0,0.36991874]
[1750257255290,5.39892457,105200.0,105190.0,0.003]
[1750257255761,5.49516633,105200.0,105190.0,0.003]
[1750257256265,5.68022395,105200.0,105190.0,0.003]
[1750257256707,5.68022395,105200.0,105190.0,0.002]
[1750257256926,5.70297025,105200.0,105190.0,0.002]
[1750257257156,5.70497025,105200.0,105190.0,0.002]
[1750257257373,5.84322608,105200.0,105190.0,0.002]
[1750257257814,5.81666032,105200.0,105190.0,0.002]
[1750257258232,5.7185111,105200.0,105190.0,0.002]
[1750257258451,5.6422589,105200.0,105190.0,0.002]
[1750257258662,0.02852415,105170.0,105160.0,0.21971336]
[1750257258877,0.22852415,105170.0,105160.0,0.21971336]
[1750257259083,0.22852415,105170.0,105160.0,0.22922204]
[1750257259298,0.42820085,105170.0,105160.0,0.21020459]
[1750257259518,0.42820085,105170.0,105160.0,0.21971354]
[1750257260330,0.44939307,105170.0,105160.0,0.20069555]
[1750257260583,0.44939307,105170.0,105160.0,0.21020468]
[1750257261025,0.24971583,105170.0,105160.0,0.23022249]
[1750257261237,0.41869235,105170.0,105160.0,0.23973117]
[1750257261425,0.42820076,105170.0,105160.0,0.23022249]
[1750257261649,0.43020076,105170.0,105160.0,0.23122249]
[1750257262104,0.23052406,105170.0,105160.0,0.24073117]
[1750257262313,0.43020076,105170.0,105160.0,0.23122249]
[1750257262735,0.24003238,105170.0,105160.0,0.24073135]
[1750257262969,0.22101583,105170.0,105160.0,0.24073135]
[1750257263223,0.25966076,105170.0,105160.0,0.24073135]
[1750257264190,0.26916917,105170.0,105160.0,0.23973135]
[1750257264444,0.29996908,105170.0,105160.0,0.23022267]
[1750257264658,0.28095253,105170.0,105160.0,0.23973135]
[1750257264874,0.25966076,105170.0,105160.0,0.23973135]
[1750257265083,0.25015253,105170.0,105160.0,0.23973135]
[1750257265292,0.25966076,105170.0,105160.0,0.23973135]
[1750257265525,0.32233746,105170.0,105160.0,0.23973153]
[1750257265757,0.13216917,105170.0,105160.0,0.23973153]
[1750257265971,0.31282905,105170.0,105160.0,0.23973099]
[1750257266193,0.32233746,105170.0,105160.0,0.23973099]
[1750257266404,0.31282968,105170.0,105160.0,0.20169546]
[1750257266618,0.002,105170.0,105160.0,0.22071309]
[1750257266842,0.002,105170.0,105160.0,0.31695485]
[1750257267081,0.002,105170.0,105160.0,0.72105485]
[1750257267297,0.002,105170.0,105160.0,0.7355957]
[1750257267509,0.002,105170.0,105160.0,0.7855957]
[1750257268004,0.002,105170.0,105160.0,0.7845957]
[1750257268231,0.002,105170.0,105160.0,0.7865957]
[1750257268449,0.01905705,105200.0,105190.0,0.21865086]
[1750257268697,0.01905696,105200.0,105190.0,0.43329086]
[1750257268930,0.01905705,105200.0,105190.0,0.43329086]
[1750257269378,0.02856221,105200.0,105190.0,0.43329086]
[1750257269661,0.01905705,105200.0,105190.0,0.43329086]
[1750257269887,0.0295623,105200.0,105190.0,0.43529086]
[1750257270139,5.40632982,105200.0,105190.0,0.002]
[1750257270389,5.39682457,105200.0,105190.0,0.002]
[1750257270921,0.02005723,105200.0,105190.0,0.22065086]
[1750257271125,0.20950516,105200.0,105190.0,0.22165086]
[1750257271341,0.22851548,105200.0,105190.0,0.22165086]
[1750257271568,0.22851539,105200.0,105190.0,0.22165086]
[1750257271811,0.23802082,105200.0,105190.0,0.22165086]
[1750257272020,0.23802073,105200.0,105190.0,0.22165086]
[1750257272250,0.22851539,105200.0,105190.0,0.22165086]
[1750257272468,0.23802091,105200.0,105190.0,0.22165086]
[1750257272688,0.23802082,105200.0,105190.0,0.22165086]
[1750257272907,0.42813488,105200.0,105190.0,0.22165086]
[1750257273120,0.23802082,105200.0,105190.0,0.22165086]
[1750257273342,0.21901014,105200.0,105190.0,0.22165086]
[1750257273562,5.08231189,105200.0,105190.0,0.22165086]
[1750257273787,0.21900996,105200.0,105190.0,0.22165086]
[1750257274428,0.21900987,105200.0,105190.0,0.22165086]
[1750257274642,0.21901005,105200.0,105190.0,0.22165086]
[1750257274895,0.23802091,105200.0,105190.0,0.22165086]
[1750257275112,0.42813497,105200.0,105190.0,0.22165086]
[1750257275330,0.43764067,105200.0,105190.0,0.21214489]
[1750257275542,0.2608153,105200.0,105190.0,0.23115692]
[1750257275764,0.27032082,105200.0,105190.0,0.23115692]
[1750257276487,0.2608153,105200.0,105190.0,0.23115692]
[1750257276711,5.072807,105200.0,105190.0,0.23115692]
[1750257276953,0.24772326,105210.0,105200.0,0.21863008]
[1750257277206,0.05722787,105210.0,105200.0,0.22813533]
[1750257277451,0.25722787,105210.0,105200.0,0.22813533]
[1750257277894,0.25722778,105210.0,105200.0,0.22813533]
[1750257278348,0.24772326,105210.0,105200.0,0.22813533]
[1750257278798,0.25722769,105210.0,105200.0,0.22813533]
[1750257279028,0.03071485,105210.0,105200.0,0.39625533]
[1750257279255,0.24021883,105210.0,105200.0,0.39625533]
[1750257279510,0.45882784,105210.0,105200.0,0.38675026]
[1750257279727,5.17552679,105210.0,105200.0,0.001]
[1750257281091,5.17552679,105210.0,105200.0,0.19111406]
[1750257281380,5.16602245,105210.0,105200.0,0.001]
[1750257281836,5.16602245,105210.0,105200.0,0.19111406]
[1750257282024,5.16602245,105210.0,105200.0,0.20061976]
[1750257282234,4.96642185,105210.0,105200.0,0.22913578]
[1750257282441,0.24972299,105210.0,105200.0,0.22913578]
[1750257282674,0.24021883,105210.0,105200.0,0.22913578]
[1750257282886,0.03567843,105210.0,105200.0,0.39625578]
[1750257283113,0.45428744,105210.0,105200.0,0.38675071]
[1750257283334,0.50728337,105210.0,105200.0,0.21963089]
[1750257283547,0.49777903,105210.0,105200.0,0.21963089]
[1750257283803,0.49777903,105210.0,105200.0,0.23864166]
[1750257284016,0.49777903,105210.0,105200.0,0.21963062]
[1750257284235,0.49777903,105210.0,105200.0,0.001]
[1750257284674,5.16562245,105210.0,105200.0,0.001]
[1750257284934,5.42942421,105210.0,105200.0,0.001]
[1750257285163,5.45216776,105210.0,105200.0,0.001]
[1750257285857,5.14335171,105190.0,105180.0,0.5]
[1750257286065,5.40731347,105190.0,105180.0,0.50004709]
[1750257286938,5.43006085,105190.0,105180.0,0.50004709]
[1750257287227,5.43406085,105190.0,105180.0,0.50104709]
[1750257288026,5.41131347,105190.0,105180.0,0.50104709]
[1750257288379,5.24359347,105190.0,105180.0,0.50104709]
[1750257288686,5.24559347,105190.0,105180.0,0.50104709]
[1750257289258,5.24559347,105190.0,105180.0,0.71021186]
[1750257289521,5.23608732,105190.0,105180.0,0.6911973]
[1750257289781,5.2265809,105190.0,105180.0,0.50104709]
[1750257291161,4.878807,105190.0,105180.0,0.71971873]
[1750257291451,0.006,105190.0,105180.0,0.87686049]
[1750257292207,0.004,105190.0,105180.0,0.87686049]
[1750257292438,0.02851494,105200.0,105190.0,0.21865086]
[1750257292651,0.02851494,105200.0,105190.0,0.43329086]
[1750257293305,0.0380201,105200.0,105190.0,0.43329086]
[1750257293519,0.01900987,105200.0,105190.0,0.20914489]
[1750257293746,0.028518,105190.0,105180.0,0.76595873]
[1750257293981,0.23802442,105190.0,105180.0,0.92385186]
[1750257294192,0.24753102,105190.0,105180.0,0.93335891]
[1750257294413,0.26972433,105190.0,105180.0,0.94286578]
[1750257294632,0.21901176,105190.0,105180.0,0.94286578]
[1750257294843,4.872807,105190.0,105180.0,0.94286578]